[Event "Slovakia Open 2022"]
[Site "Bratislava"]
[Date "2022.10.01"]
[Round "6.29"]
[White "Dubnicka, Ferdinand"]
[Black "Hryshko Herman"]
[Result "0-1"]
[ECO "B50"]
[WhiteElo "1494"]
[BlackElo "1000"]
[Annotator "NA RC COMBH"]
[PlyCount "84"]
[EventDate "2022.09.30"]
[EventCountry "SVK"]
[SourceTitle "playchess.com"]
[Source "ChessBase"]
[SourceQuality "1"]
[TimeControl "2700+10"]

1. e4 {[%emt 0:00:15]} c5 {[%emt 0:00:03]} 2. Nf3 {[%emt 0:00:03]} d6 {[%emt 0:00:04]} 3. h3 {[%emt 0:00:07]} Nf6 {[%emt 0:00:06]} 4. Nc3 {[%emt 0:00:03]} Nc6 {[%emt 0:00:04]} 5. Bb5 {[%emt 0:00:02]} Bd7 {[%emt 0:00:04]} 6. O-O {[%emt 0:00:03]} a6 {[%emt 0:00:13]} 7. Bc4 {[%emt 0:00:09]} b5 {[%emt 0:00:11]} 8. Bd5 {[%emt 0:00:02]} e6 {[%emt 0:00:47]} 9. Bxc6 {[%emt 0:00:05]} Bxc6 {[%emt 0:00:01]} 10. d3 {[%emt 0:00:02]} Be7 {[%emt 0:00:03]} 11. Bg5 {[%emt 0:00:01]} b4 {[%emt 0:00:06]} 12. Ne2 {[%emt 0:00:06]} O-O {[%emt 0:00:04]} 13. Ng3 {[%emt 0:00:02]} Nd7 {[%emt 0:00:26]} 14. Bxe7 {[%emt 0:03:17]} Qxe7 {[%emt 0:00:03]} 15. c4 {[%emt 0:00:08]} bxc3 {[%emt 0:00:23]} 16. bxc3 {[%emt 0:00:01]} Rab8 {[%emt 0:00:48]} 17. c4 {[%emt 0:00:05]} Nf6 {[%emt 0:01:16]} 18. Re1 {[%emt 0:00:08]} e5 {[%emt 0:01:04]} 19. Qd2 {[%emt 0:00:02]} h6 {[%emt 0:00:23]} 20. Nf5 {[%emt 0:00:05]} Qe6 {[%emt 0:00:52]} 21. N3h4 {[%emt 0:00:14]} Nh5 {[%emt 0:02:56]} 22. Kh2 {[%emt 0:00:20]} g5 {[%emt 0:00:40]} 23. Qe2 {[%emt 0:00:16]} Ng7 {[%emt 0:00:20]} 24. Nxg7 {[%emt 0:00:05]} Kxg7 {[%emt 0:00:06]} 25. Nf5+ {[%emt 0:00:11]} Kh7 {[%emt 0:00:43]} 26. Qg4 {[%emt 0:00:09]} Rb2 {[%emt 0:01:08]} 27. Kg1 {[%emt 0:00:07]} Rd2 {[%emt 0:01:07]} 28. Re3 {[%emt 0:00:03]} Bd7 {[%emt 0:00:46]} 29. h4 {[%emt 0:00:02]} Rg8 {[%emt 0:00:48]} 30. Rg3 {[%emt 0:00:10]} Qf6 {[%emt 0:00:39]} 31. hxg5 {[%emt 0:00:46]} Bxf5 {[%emt 0:01:09]} 32. exf5 {[%emt 0:00:03]} Qxg5 {[%emt 0:00:11]} 33. Qe4 {[%emt 0:00:05]} Qf6 {[%emt 0:00:28]} 34. Rxg8 {[%emt 0:00:03]} Kxg8 {[%emt 0:00:05]} 35. Rb1 {[%emt 0:00:11]} Qg5 {[%emt 0:01:27]} 36. g3 {[%emt 0:00:15]} Rxa2 {[%emt 0:01:11]} 37. Kg2 {[%emt 0:00:12]} a5 {[%emt 0:00:31]} 38. Rh1 {[%emt 0:00:05]} Kg7 {[%emt 0:01:09]} 39. Rh4 {[%emt 0:00:04]} h5 {[%emt 0:01:13]} 40. Qf3 {[%emt 0:00:03]} Kh6 {[%emt 0:00:26]} 41. g4 {[%emt 0:00:02]} Qxh4 {[%emt 0:00:36]} 42. Qh3 {[%emt 0:00:13]} Rxf2+ {[%emt 0:00:14]} 0-1

[Event "Slovakia Open 2022"]
[Site "Bratislava"]
[Date "2022.10.01"]
[Round "6.30"]
[White "Romanova, Ela"]
[Black "Nosal, Tobias"]
[Result "1-0"]
[ECO "B31"]
[WhiteElo "1580"]
[BlackElo "1601"]
[Annotator "NA RC COMBH"]
[PlyCount "71"]
[EventDate "2022.09.30"]
[EventCountry "SVK"]
[SourceTitle "playchess.com"]
[Source "ChessBase"]
[SourceQuality "1"]
[TimeControl "2700+10"]

1. e4 {[%emt 0:00:55]} c5 {[%emt 0:00:01]} 2. Nf3 {[%emt 0:00:02]} Nc6 {[%emt 0:00:01]} 3. Bb5 {[%emt 0:00:05]} g6 {[%emt 0:00:03]} 4. c3 {[%emt 0:00:04]} Bg7 {[%emt 0:00:35]} 5. d4 {[%emt 0:00:04]} cxd4 {[%emt 0:00:37]} 6. cxd4 {[%emt 0:00:01]} Qb6 {[%emt 0:02:02]} 7. Nc3 {[%emt 0:00:36]} Nxd4 {[%emt 0:03:31]} 8. Nd5 {[%emt 0:03:45]} Nxf3+ {[%emt 0:02:15]} 9. Qxf3 {[%emt 0:00:02]} Qd8 {[%emt 0:01:27]} 10. Bf4 {[%emt 0:01:43]} e5 {[%emt 0:02:43]} 11. Bd2 {[%emt 0:00:15]} Nf6 {[%emt 0:10:08]} 12. Bg5 {[%emt 0:01:04]} O-O {[%emt 0:08:24]} 13. O-O {[%emt 0:03:27]} Qa5 {[%emt 0:01:12]} 14. Nxf6+ {[%emt 0:05:10]} Bxf6 {[%emt 0:01:36]} 15. Qxf6 {[%emt 0:00:21]} Qb6 {[%emt 0:01:21]} 16. Qxb6 {[%emt 0:01:25]} axb6 {[%emt 0:00:02]} 17. Rfd1 {[%emt 0:00:14]} f6 {[%emt 0:00:22]} 18. Bh6 {[%emt 0:00:30]} Rd8 {[%emt 0:00:12]} 19. Rd6 {[%emt 0:00:15]} Kf7 {[%emt 0:00:34]} 20. h4 {[%emt 0:00:59]} Ke7 {[%emt 0:00:59]} 21. Rxf6 {[%emt 0:00:41]} d5 {[%emt 0:00:54]} 22. Bg5 {[%emt 0:01:10]} h6 {[%emt 0:00:11]} 23. Bxh6 {[%emt 0:00:27]} Kxf6 {[%emt 0:00:20]} 24. Bg5+ {[%emt 0:00:07]} Kf7 {[%emt 0:00:05]} 25. Bxd8 {[%emt 0:00:07]} Be6 {[%emt 0:00:09]} 26. exd5 {[%emt 0:00:34]} Rxd8 {[%emt 0:00:31]} 27. dxe6+ {[%emt 0:00:02]} Kxe6 {[%emt 0:00:02]} 28. Re1 {[%emt 0:00:33]} Rd2 {[%emt 0:00:14]} 29. f4 {[%emt 0:00:54]} Rxb2 {[%emt 0:00:09]} 30. Bc4+ {[%emt 0:00:26]} Kf6 {[%emt 0:00:29]} 31. fxe5+ {[%emt 0:00:06]} Ke7 {[%emt 0:00:02]} 32. e6 {[%emt 0:00:49]} Rb4 {[%emt 0:00:09]} 33. Re4 {[%emt 0:01:05]} b5 {[%emt 0:00:17]} 34. Bd5 {[%emt 0:01:20]} Rxe4 {[%emt 0:00:50]} 35. Bxe4 {[%emt 0:00:02]} Kxe6 {[%emt 0:00:08]} 36. Bxg6 {[%emt 0:00:04]} 1-0

[Event "Slovakia Open 2022"]
[Site "Bratislava"]
[Date "2022.10.01"]
[Round "6.31"]
[White "Csontos, Aron"]
[Black "Prochazka, Peter"]
[Result "1/2-1/2"]
[ECO "B22"]
[WhiteElo "1962"]
[BlackElo "1792"]
[Annotator "TA"]
[PlyCount "82"]
[EventDate "2022.09.30"]
[EventCountry "SVK"]
[SourceTitle "playchess.com"]
[Source "ChessBase"]
[SourceQuality "1"]
[TimeControl "2700+10"]

{[%evp 13,82,0,28,0,30,24,33,33,33,0,-17,-14,40,-30,27,27,26,17,48,39,41,39,45,0,0,0,26,0,0,0,0,0,0,0,0,0,0,0,0,0,0,0,0,0,0,0,0,0,0,0,0,0,0,0,202,0,0,0,0,0,0,0,0,0,0,0,0,0,0,0,0]} 1. e4 {[%emt 0:00:02]} c5 {[%emt 0:05:01]} 2. c3 {[%emt 0:00:03]} d5 {[%emt 0:00:03]} 3. exd5 {[%emt 0:00:02]} Qxd5 {[%emt 0:00:09]} 4. d4 {[%emt 0:00:03]} Nc6 {[%emt 0:00:15]} 5. Nf3 {[%emt 0:00:03]} Nf6 {[%emt 0:01:11]} 6. dxc5 {[%emt 0:00:43]} Qxd1+ {[%emt 0:00:18]} 7. Kxd1 {[%emt 0:00:03]} Bg4 {[%emt 0:02:58]} 8. Be3 {[%emt 0:01:52] B22: Sicilian: 2 c3.} (8. Nbd2 $5 {[%cal Rh2h3]}) 8... e5 {[%emt 0:01:20]} 9. h3 {[%emt 0:01:09]} Bxf3+ {[%emt 0:05:14]} 10. gxf3 {[%emt 0:00:02] White is slightly better.} Nd5 $1 {[%emt 0:02:23]} 11. b4 {[%emt 0:04:16]} (11. Bc4 $14 Nxe3+ 12. fxe3) 11... a5 $11 {[%emt 0:02:43]} 12. b5 {[%emt 0:02:25]} (12. bxa5 {keeps more tension.} Nxa5 13. Bb5+ Ke7 14. Kc2) 12... Nd8 {[%emt 0:00:26] [#]} (12... Nce7 $1 $11) 13. Na3 $146 {[%emt 0:06:10]} ({White should try} 13. c6 $14) ({Predecessor:} 13. Bc4 Nxe3+ 14. fxe3 Bxc5 15. Ke2 Ke7 16. Nd2 Ne6 17. Bd5 Rab8 18. Nb3 Bb6 19. a4 {0-1 (53) Herrmann,R (2097)-Manzone,A (2416) Buenos Aires 2022}) 13... Nxe3+ {[%emt 0:01:09]} ({Black should play} 13... Nxc3+ 14. Kc2 Na4) 14. fxe3 {[%emt 0:00:21]} Bxc5 {[%emt 0:00:03]} 15. Nc4 {[%emt 0:00:04]} Ne6 {[%emt 0:02:19]} 16. Bd3 {[%emt 0:00:56][%cal Bf1d3,Bd3e4,Be4c6][%mdl 32]} b6 {[%emt 0:07:36]} 17. Ke2 {[%emt 0:01:29]} f6 {[%emt 0:00:06]} 18. Rhd1 {[%emt 0:03:00]} Ke7 {[%emt 0:01:13]} 19. Be4 {[%emt 0:01:05]} Rad8 {[%emt 0:00:26]} 20. Bc6 {[%emt 0:01:39]} Rxd1 {[%emt 0:00:32]} 21. Rxd1 {[%emt 0:00:02] [#] Hoping for Rd7+.} Rd8 {[%emt 0:00:02] Against Rd7+} 22. Rxd8 {[%emt 0:00:25]} Nxd8 {[%emt 0:00:48][%mdl 4096] Endgame KBN-KBN} 23. Bd5 {[%emt 0:00:07]} Ne6 {[%emt 0:00:34]} 24. Bxe6 {[%emt 0:00:09]} Kxe6 {[%emt 0:00:04] KB-KN} 25. e4 {[%emt 0:00:11]} g6 {[%emt 0:00:35]} 26. Nd2 {[%emt 0:00:47]} f5 {[%emt 0:00:49]} 27. Kd3 {[%emt 0:00:18]} h5 {[%emt 0:01:32]} 28. Nb3 {[%emt 0:01:28]} Bf2 {[%emt 0:00:46]} 29. a4 {[%emt 0:00:46]} f4 {[%emt 0:01:25]} 30. Nc1 {[%emt 0:01:47]} Be3 {[%emt 0:00:13]} 31. Nb3 {[%emt 0:01:34]} Kd6 {[%emt 0:00:22]} 32. Ke2 {[%emt 0:04:30]} Ke7 {[%emt 0:00:08]} 33. Kf1 $1 {[%emt 0:00:33]} Kf6 $2 {[%emt 0:00:42] [#]} (33... g5 $11) 34. h4 $2 {[%emt 0:01:30]} (34. c4 $1 $18) 34... Ke6 {[%emt 0:00:57] The position is equal.} 35. Kg2 {[%emt 0:00:31]} Kd6 {[%emt 0:00:57]} 36. Kf1 {[%emt 0:00:05]} Bc5 {[%emt 0:00:57]} 37. Nd2 {[%emt 0:00:51]} Ke6 {[%emt 0:00:32]} 38. Nc4 {[%emt 0:01:24]} Kf6 {[%emt 0:00:05]} 39. Ke2 {[%emt 0:00:13]} Ke6 {[%emt 0:00:43]} 40. Kd3 {[%emt 0:01:16]} Bf2 {[%emt 0:00:34]} 41. Ke2 {[%emt 0:00:06]} Bc5 {[%emt 0:00:42] Weighted Error Value: White=0.16 (very precise) /Black=0.22 (precise)} 1/2-1/2

[Event "Slovakia Open 2022"]
[Site "Bratislava"]
[Date "2022.10.01"]
[Round "6.32"]
[White "Kostic, Ivan"]
[Black "Durovka, Stefan"]
[Result "0-1"]
[ECO "D04"]
[WhiteElo "1716"]
[BlackElo "1783"]
[Annotator "NA RC COMBH"]
[PlyCount "90"]
[EventDate "2022.09.30"]
[EventCountry "SVK"]
[SourceTitle "playchess.com"]
[Source "ChessBase"]
[SourceQuality "1"]
[TimeControl "2700+10"]

1. d4 {[%emt 0:00:08]} d5 {[%emt 0:02:00]} 2. e3 {[%emt 0:00:18]} Nf6 {[%emt 0:00:02]} 3. Nf3 {[%emt 0:00:15]} Nbd7 {[%emt 0:00:02]} 4. b3 {[%emt 0:00:05]} c5 {[%emt 0:00:10]} 5. dxc5 {[%emt 0:00:10]} Nxc5 {[%emt 0:00:00]} 6. Bb2 {[%emt 0:00:21]} e6 {[%emt 0:00:00]} 7. Be2 {[%emt 0:00:36]} Be7 {[%emt 0:00:04]} 8. O-O {[%emt 0:00:04]} O-O {[%emt 0:00:04]} 9. c4 {[%emt 0:00:04]} a6 {[%emt 0:01:04]} 10. b4 {[%emt 0:00:48]} Nce4 {[%emt 0:00:53]} 11. a3 {[%emt 0:01:08]} b6 {[%emt 0:01:29]} 12. h3 {[%emt 0:00:34]} Bb7 {[%emt 0:00:18]} 13. cxd5 {[%emt 0:01:21]} Nxd5 {[%emt 0:00:32]} 14. Nbd2 {[%emt 0:01:27]} Ndc3 {[%emt 0:00:30]} 15. Bxc3 {[%emt 0:01:00]} Nxc3 {[%emt 0:00:03]} 16. Qe1 {[%emt 0:00:08]} Bf6 {[%emt 0:00:14]} 17. Rc1 {[%emt 0:00:25]} Nxe2+ {[%emt 0:00:06]} 18. Qxe2 {[%emt 0:00:04]} Bb2 {[%emt 0:00:35]} 19. Rb1 {[%emt 0:00:25]} Bxa3 {[%emt 0:00:04]} 20. Rb3 {[%emt 0:00:22]} Bxb4 {[%emt 0:00:42]} 21. Rxb4 {[%emt 0:00:06]} a5 {[%emt 0:00:10]} 22. Rb2 {[%emt 0:00:08]} Ba6 {[%emt 0:00:01]} 23. Nc4 {[%emt 0:00:12]} b5 {[%emt 0:01:34]} 24. Rd1 {[%emt 0:00:11]} Qf6 {[%emt 0:00:15]} 25. Nce5 {[%emt 0:02:16]} Rfd8 {[%emt 0:00:43]} 26. Rxd8+ {[%emt 0:01:11]} Rxd8 {[%emt 0:00:23]} 27. Qc2 {[%emt 0:01:55]} Rc8 {[%emt 0:01:24]} 28. Qb1 {[%emt 0:01:34]} b4 {[%emt 0:00:39]} 29. Ng4 {[%emt 0:00:17]} Qc3 {[%emt 0:01:23]} 30. Rb3 {[%emt 0:00:54]} Qc6 {[%emt 0:03:02]} 31. Nd4 {[%emt 0:00:26]} Qd5 {[%emt 0:00:24]} 32. Nf3 {[%emt 0:05:55]} f6 {[%emt 0:03:57]} 33. Rb2 {[%emt 0:04:36]} Bd3 {[%emt 0:00:30]} 34. Qd1 {[%emt 0:02:30]} e5 {[%emt 0:03:27]} 35. Ne1 {[%emt 0:01:43]} e4 {[%emt 0:00:18]} 36. Nc2 {[%emt 0:04:00]} h5 {[%emt 0:00:27]} 37. Nh2 {[%emt 0:00:13]} Qc4 {[%emt 0:00:18]} 38. Nd4 {[%emt 0:00:26]} Qc1 {[%emt 0:01:07]} 39. Rd2 {[%emt 0:00:27]} a4 {[%emt 0:00:42]} 40. Ne2 {[%emt 0:00:53]} Qxd1+ {[%emt 0:00:55]} 41. Rxd1 {[%emt 0:00:03]} Bxe2 {[%emt 0:00:03]} 42. Ra1 {[%emt 0:00:13]} Ra8 {[%emt 0:00:08]} 43. Nf1 {[%emt 0:00:04]} Bxf1 {[%emt 0:00:06]} 44. Kxf1 {[%emt 0:00:10]} a3 {[%emt 0:00:02]} 45. Ke2 {[%emt 0:00:07]} b3 {[%emt 0:00:01]} 0-1

[Event "Slovakia Open 2022"]
[Site "Bratislava"]
[Date "2022.10.01"]
[Round "6.33"]
[White "Merva Max"]
[Black "Slivka, Vasil"]
[Result "0-1"]
[ECO "C48"]
[WhiteElo "1000"]
[BlackElo "1569"]
[Annotator "NA RC COMBH"]
[PlyCount "27"]
[EventDate "2022.09.30"]
[EventCountry "SVK"]
[SourceTitle "playchess.com"]
[Source "ChessBase"]
[SourceQuality "1"]
[TimeControl "2700+10"]

1. e4 {[%emt 0:00:05]} e5 {[%emt 0:00:01]} 2. Nf3 {[%emt 0:00:19]} Nc6 {[%emt 0:00:03]} 3. Nc3 {[%emt 0:00:42]} Nf6 {[%emt 0:00:08]} 4. Bb5 {[%emt 0:00:37]} Bc5 {[%emt 0:00:47]} 5. d4 {[%emt 0:00:35]} Nxd4 {[%emt 0:00:25]} 6. Nxe5 {[%emt 0:01:08]} Nxb5 {[%emt 0:00:22]} 7. Nxb5 {[%emt 0:00:04]} d6 {[%emt 0:00:37]} 8. Nc4 {[%emt 0:00:37]} O-O {[%emt 0:00:25]} 9. O-O {[%emt 0:00:14]} Nxe4 {[%emt 0:00:30]} 10. Nd2 {[%emt 0:00:32]} Bf5 {[%emt 0:01:06]} 11. Qf3 {[%emt 0:00:51]} Nxd2 {[%emt 0:00:35]} 12. Bxd2 {[%emt 0:00:23]} Bd7 {[%emt 0:00:55]} 13. h3 {[%emt 0:05:00]} Re8 {[%emt 0:00:00]} 14. h4 {[%emt 0:01:45]} 0-1

[Event "Slovakia Open 2022"]
[Site "Bratislava"]
[Date "2022.10.01"]
[Round "6.34"]
[White "Rehacek, Jan"]
[Black "Ruderfer, Mark B"]
[Result "0-1"]
[ECO "D00"]
[WhiteElo "1342"]
[BlackElo "2236"]
[Annotator "TA"]
[PlyCount "81"]
[EventDate "2022.09.30"]
[EventCountry "SVK"]
[SourceTitle "playchess.com"]
[Source "ChessBase"]
[SourceQuality "1"]
[TimeControl "2700+10"]

{[%evp 9,81,-20,-26,-29,-19,-22,11,-103,-14,-12,10,0,0,-1,9,4,9,0,0,5,36,48,31,4,0,-73,10,0,0,0,201,191,222,233,397,390,385,111,151,-111,106,97,103,83,116,107,165,24,26,0,0,0,13,8,184,0,0,0,38,42,39,0,0,0,0,0,0,0,0,-496,-471,-592,-594,-475]} 1. d4 {[%emt 0:00:07]} d5 {[%emt 0:00:04]} 2. Bf4 {[%emt 0:00:12]} Nf6 {[%emt 0:00:03]} 3. Nc3 {[%emt 0:00:05]} e6 {[%emt 0:00:03]} 4. a3 {[%emt 0:00:07]} a6 {[%emt 0:00:03]} 5. Nf3 {[%emt 0:00:09]} c5 {[%emt 0:00:04]} 6. e3 {[%emt 0:00:21] D00: 1 d4 d5: Unusual lines.} Nc6 {[%emt 0:00:03]} 7. Ne5 {[%emt 0:00:23]} Bd6 {[%emt 0:01:14] [#]} 8. Ne2 $146 {[%emt 0:02:56]} (8. Nxc6 $11 {remains equal.} bxc6 9. Qf3) ({Predecessor:} 8. Nxc6 bxc6 9. dxc5 Bxc5 10. Bd3 Bd6 11. Bxd6 Qxd6 12. e4 d4 13. Nb1 e5 14. Nd2 {0-1 (35) Omar,N (2353)-Pantsulaia,L (2587) Abu Dhabi 2018}) 8... Qc7 {[%emt 0:00:11]} (8... Bxe5 $17 9. dxe5 (9. Bxe5 Nxe5 10. dxe5 Ng4 $17) 9... Nd7) 9. Nxc6 $11 {[%emt 0:00:49]} Bxf4 {[%emt 0:00:46]} 10. Nxf4 {[%emt 0:00:31] aiming for Ne5.} Qxc6 {[%emt 0:00:06]} 11. c3 {[%emt 0:00:52]} O-O {[%emt 0:00:18]} 12. Bd3 {[%emt 0:00:59]} b5 {[%emt 0:00:51]} 13. O-O {[%emt 0:01:20]} a5 {[%emt 0:01:35]} 14. Nh5 {[%emt 0:01:51]} Nd7 {[%emt 0:04:05]} 15. Qg4 {[%emt 0:04:03][%csl Gh5][%cal Rg4g7]} g6 {[%emt 0:00:32]} 16. Ng3 {[%emt 0:04:34]} e5 {[%emt 0:01:27][%cal Be6e5,Be5e4][%mdl 32]} 17. f4 {[%emt 0:01:35]} (17. Qg5 $11) 17... Nf6 {[%emt 0:01:38]} (17... e4 $1 $17 {[%cal Re4d3]} 18. Be2 f5) 18. Qg5 $36 {[%emt 0:02:04][%mdl 2048] White has the initiative.} e4 {[%emt 0:00:44]} 19. Be2 {[%emt 0:01:09]} Kh8 $2 {[%emt 0:01:17]} (19... Kg7 $1 $11) 20. f5 $1 $18 {[%emt 0:02:14][%cal Oe2b5]} c4 {[%emt 0:00:58]} 21. Rf4 {[%emt 0:02:23]} b4 $2 {[%emt 0:02:14]} (21... Ra6 22. Raf1 Qb6 23. fxg6 fxg6) 22. Raf1 {[%emt 0:03:12] fxg6 is the strong threat.} Ra6 {[%emt 0:02:29]} 23. Rh4 $2 {[%emt 0:05:46]} (23. axb4 $18 {is more deadly.} axb4 24. fxg6 fxg6 25. cxb4) 23... Rg8 {[%emt 0:02:10]} 24. Qh6 $2 {[%emt 0:03:56]} (24. fxg6 $16 {[%cal Og5f6] and life is bright. White wants to mate with Qxf6+!} Rxg6 25. Qe5 bxc3 26. bxc3) 24... Rg7 $2 {[%emt 0:01:06] [#]} (24... g5 $17 {keeps the pressure on.} 25. Rh3 bxa3) 25. fxg6 $1 $16 {[%emt 0:02:18]} ({Don't go for} 25. cxb4 $2 Ng8 26. Qg5 f6 $19) 25... fxg6 {[%emt 0:00:35]} 26. Qg5 {[%emt 0:02:36]} bxc3 {[%emt 0:02:29]} 27. bxc3 {[%emt 0:00:14]} Bd7 {[%emt 0:00:57]} (27... Ng8 $16 {was necessary.}) 28. Qe5 {[%emt 0:00:19]} ({Better is} 28. Rhf4 $18 {[%cal Rf4f6]} Bf5 29. Nxf5 gxf5 30. Qxf5) 28... Qe6 {[%emt 0:00:40]} 29. Rb1 {[%emt 0:01:05]} Qxe5 {[%emt 0:00:52]} 30. dxe5 {[%emt 0:00:03]} Ne8 {[%emt 0:00:18]} 31. Rf4 {[%emt 0:00:37][%cal Og3e4] With the idea Nxe4!} Kg8 $2 {[%emt 0:00:27] [#]} (31... Ra7 $11 {and Black is okay.}) 32. Bg4 $2 {[%emt 0:00:27]} ({White should try} 32. Nxe4 $1 $18 {[%cal Ob1b8][%mdl 512] Hoping for Rb8!} Rc6 33. Nd2) 32... Bxg4 $11 {[%emt 0:06:10]} 33. Rxg4 {[%emt 0:00:01]} Nc7 {[%emt 0:00:11] Prevents Rb5.} 34. Rb8+ {[%emt 0:00:08]} Kf7 {[%emt 0:00:03]} 35. Rf4+ {[%emt 0:00:04]} Ke6 {[%emt 0:00:10]} 36. Ne2 {[%emt 0:00:31]} Kxe5 {[%emt 0:00:19]} 37. Nd4 {[%emt 0:00:07]} Ne6 {[%emt 0:00:52]} 38. Re8 {[%emt 0:00:12]} Rb7 $1 {[%emt 0:01:36][%cal Ob7b3]} 39. Nxe6 $2 {[%emt 0:00:30][%mdl 8192]} (39. g4 $11 {and White stays safe.}) 39... Rxe6 $19 {[%emt 0:00:04]} 40. Rxe6+ {[%emt 0:00:26]} Kxe6 {[%emt 0:00:02]} 41. Rf8 {[%emt 0:00:44] Black used his chance.  Weighted Error Value: White=0.64/Black=0.43} 0-1

[Event "Slovakia Open 2022"]
[Site "Bratislava"]
[Date "2022.10.01"]
[Round "6.35"]
[White "Nikpour Aryabod"]
[Black "Nedoba, Jakub"]
[Result "1/2-1/2"]
[ECO "B12"]
[WhiteElo "1000"]
[BlackElo "1160"]
[Annotator "NA COMBH"]
[PlyCount "37"]
[EventDate "2022.09.30"]
[EventCountry "SVK"]
[SourceTitle "playchess.com"]
[Source "ChessBase"]
[SourceQuality "1"]
[TimeControl "2700+10"]

1. e4 {[%emt 0:00:03]} c6 {[%emt 0:02:51]} 2. d4 {[%emt 0:00:02]} d5 {[%emt 0:00:03]} 3. e5 {[%emt 0:00:01]} Bf5 {[%emt 0:00:12]} 4. h4 {[%emt 0:00:02]} h6 {[%emt 0:00:10]} 5. Bd3 {[%emt 0:00:06]} Bxd3 {[%emt 0:00:37]} 6. Qxd3 {[%emt 0:00:02]} e6 {[%emt 0:00:07]} 7. Nf3 {[%emt 0:00:04]} c5 {[%emt 0:00:07]} 8. c3 {[%emt 0:00:11]} Ne7 {[%emt 0:00:12]} 9. O-O {[%emt 0:00:40]} Nf5 {[%emt 0:00:21]} 10. dxc5 {[%emt 0:00:50]} Nc6 {[%emt 0:00:29]} 11. Be3 {[%emt 0:02:22]} Nxh4 {[%emt 0:00:38]} 12. Nxh4 {[%emt 0:00:12]} Qxh4 {[%emt 0:00:04]} 13. Nd2 {[%emt 0:00:24]} Nxe5 {[%emt 0:01:40]} 14. Qb5+ {[%emt 0:01:12]} Nd7 {[%emt 0:03:13]} 15. Qxb7 {[%emt 0:04:28]} Rd8 {[%emt 0:05:46]} 16. Qxa7 {[%emt 0:02:51]} Be7 {[%emt 0:02:22]} 17. c6 {[%emt 0:04:43]} Bd6 {[%emt 0:04:21]} 18. g3 {[%emt 0:06:55]} Bxg3 {[%emt 0:00:10]} 19. fxg3 {[%emt 0:01:22]} 1/2-1/2

[Event "Slovakia Open 2022"]
[Site "Bratislava"]
[Date "2022.10.01"]
[Round "7.1"]
[White "Heberla, Bartlomiej"]
[Black "Stocek, Jiri"]
[Result "1/2-1/2"]
[ECO "B90"]
[WhiteElo "2568"]
[BlackElo "2559"]
[Annotator "TA"]
[PlyCount "110"]
[EventDate "2022.09.30"]
[EventCountry "SVK"]
[SourceTitle "playchess.com"]
[Source "ChessBase"]
[SourceQuality "1"]
[TimeControl "2700+10"]

{[%evp 10,110,38,14,18,10,22,9,13,14,9,11,38,25,35,0,0,0,0,0,0,-12,-6,-10,0,-6,-8,0,-7,-17,-4,-20,0,-15,-15,-10,-10,-34,-33,-31,-32,-44,-43,-43,-43,-43,-43,-43,-43,-43,-43,-44,-43,-47,-43,-43,-43,-43,-27,-47,-47,-47,-47,-62,-62,-62,-62,-62,-62,-66,-62,-66,-62,-66,-66,-66,-66,-66,-66,-66,-66,-66,-66,-66,-66,-66,-66,-66,-66,-66,-66,-66,-24,-25,-25,-25,-25,-61,-25,-77,-61,-61,-1]} 1. e4 {[%emt 0:00:03]} c5 {[%emt 0:00:05]} 2. Nf3 {[%emt 0:00:03]} d6 {[%emt 0:00:02]} 3. d4 {[%emt 0:00:01]} cxd4 {[%emt 0:00:02]} 4. Nxd4 {[%emt 0:00:01]} Nf6 {[%emt 0:00:02]} 5. Nc3 {[%emt 0:00:02]} a6 {[%emt 0:00:06]} 6. Bd3 {[%emt 0:00:04]} Nbd7 {[%emt 0:00:40] B90: Sicilian Najdorf: Unusual White 6th moves, 6 Be3 Ng4 and 6 Be3 e5.} 7. O-O {[%emt 0:00:45]} g6 {[%emt 0:01:00]} 8. Re1 {[%emt 0:00:06]} Bg7 {[%emt 0:00:14] The position is equal.} 9. Bf1 {[%emt 0:00:04]} O-O {[%emt 0:00:55]} 10. a4 {[%emt 0:00:18][%cal Ba2a4,Ba4a5][%mdl 32]} Re8 {[%emt 0:00:46]} 11. a5 {[%emt 0:02:04]} Nc5 {[%emt 0:02:38] [#]} 12. Nb3 $146 {[%emt 0:06:37]} ({Predecessor:} 12. f3 b5 13. axb6 Qxb6 14. Be3 Qxb2 15. Qd2 Qb6 16. Qf2 Bd7 17. e5 Nh5 18. g4 Bxe5 19. gxh5 gxh5 {1-0 (38) Rohan,B (1953)-Arnav,M (1223) Mumbai 2020}) 12... Nxb3 {[%emt 0:03:57]} 13. cxb3 {[%emt 0:00:02]} b5 {[%emt 0:00:29]} 14. axb6 {[%emt 0:00:14]} Qxb6 {[%emt 0:00:04]} 15. Be3 {[%emt 0:00:01]} Qb7 {[%emt 0:01:00]} 16. Bc4 {[%emt 0:00:12]} Bd7 {[%emt 0:00:08]} 17. f3 {[%emt 0:01:35]} Bb5 {[%emt 0:05:09]} 18. Nxb5 {[%emt 0:04:12]} axb5 {[%emt 0:00:12]} 19. Rxa8 {[%emt 0:00:16]} Rxa8 {[%emt 0:00:03]} 20. Bf1 {[%emt 0:00:03]} Ne8 {[%emt 0:00:36][%cal Bf6e8,Be8c7,Bc7e6,Be6d4][%mdl 32]} 21. Qe2 {[%emt 0:03:31]} Nc7 {[%emt 0:02:53]} 22. Rc1 {[%emt 0:01:01]} d5 {[%emt 0:01:25]} 23. Qc2 {[%emt 0:04:48]} Ne6 {[%emt 0:01:07]} 24. exd5 {[%emt 0:00:02]} Qxd5 {[%emt 0:00:18]} 25. Qc6 {[%emt 0:00:02]} Qxc6 {[%emt 0:07:21]} 26. Rxc6 {[%emt 0:00:02]} Bxb2 {[%emt 0:00:25]} 27. Bxb5 {[%emt 0:02:51]} Nd4 {[%emt 0:00:31]} 28. Ra6 {[%emt 0:06:47]} Rxa6 {[%emt 0:03:53]} 29. Bxa6 {[%emt 0:01:09]} Nxb3 $15 {[%emt 0:01:25][%mdl 4096] Endgame KBB-KBN} 30. Kf1 {[%emt 0:00:28]} Kg7 {[%emt 0:01:39]} 31. Ke2 {[%emt 0:00:30]} Na5 {[%emt 0:00:54]} 32. Bb6 {[%emt 0:01:19]} Nc6 {[%emt 0:00:31]} 33. Bb5 {[%emt 0:00:44]} Ne5 {[%emt 0:00:36]} 34. Bc7 {[%emt 0:00:09]} g5 {[%emt 0:00:13]} 35. Bxe5+ {[%emt 0:00:03]} Bxe5 {[%emt 0:00:03] KB-KB} 36. h3 {[%emt 0:00:05]} Bg3 {[%emt 0:00:11]} 37. Bd3 {[%emt 0:00:35]} h5 {[%emt 0:00:08]} 38. Bc2 {[%emt 0:00:03]} Kf6 {[%emt 0:00:07]} 39. Ba4 {[%emt 0:00:03]} h4 {[%emt 0:00:11]} 40. Bb5 {[%emt 0:00:03]} Bb8 {[%emt 0:00:47]} 41. Ba6 {[%emt 0:00:02]} Ke5 {[%emt 0:00:07]} 42. Bc4 {[%emt 0:00:04]} f6 {[%emt 0:00:33]} 43. Ba6 {[%emt 0:00:02]} Ba7 {[%emt 0:00:03]} 44. Bc8 {[%emt 0:00:04]} Kf4 {[%emt 0:00:08]} 45. Kf1 {[%emt 0:00:04]} Kg3 {[%emt 0:00:03]} 46. Be6 {[%emt 0:00:04]} Bb6 {[%emt 0:00:02]} 47. Bc8 {[%emt 0:00:05]} e5 {[%emt 0:00:04]} 48. Bd7 {[%emt 0:00:06]} Kf4 {[%emt 0:00:29]} 49. Bc8 {[%emt 0:00:05]} f5 {[%emt 0:00:09]} 50. Bb7 {[%emt 0:00:56]} g4 {[%emt 0:02:34]} 51. hxg4 {[%emt 0:00:07]} fxg4 {[%emt 0:00:15]} 52. fxg4 {[%emt 0:00:03]} Kxg4 {[%emt 0:00:01]} 53. Bf3+ {[%emt 0:00:02]} Kg3 {[%emt 0:00:03] [#] ( -> ...h3)} 54. Be2 {[%emt 0:00:02]} (54. Ke2 $11) 54... e4 {[%emt 0:00:03]} 55. Ba6 {[%emt 0:00:02]} h3 {[%emt 0:00:06] Weighted Error Value: White=0.06 (flawless) /Black=0.05 (flawless)} (55... Kf4 $15) 1/2-1/2